bitfinex/quotes_ETHUSD_20250630
["timestamp","ask_amount","ask_price","bid_price","bid_amount"]
[1751313455050,0.9801,2515.2,2514.7,6.8564]
[1751313455238,0.7817,2515.2,2514.9,3.97625641]
[1751313455549,0.1984,2515.3,2514.9,4.17465641]
[1751313456046,4.17408411,2515.3,2514.9,0.1984]
[1751313456255,5.07053903,2515.3,2514.9,0.1984]
[1751313456548,1.09485492,2515.3,2514.9,4.17469451]
[1751313456851,1.09485492,2515.3,2514.9,4.1746141]
[1751313457054,4.17408124,2515.3,2514.9,0.1984]
[1751313457553,4.17408654,2515.3,2514.9,0.1984]
[1751313458027,0.1984,2515.3,2514.9,0.7731]
[1751313458553,1.0335,2515.6,2515.2,3.97569516]
[1751313458737,1.7444558,2515.6,2515.2,3.97569516]
[1751313459948,1.7444558,2515.6,2515.1,4.17432492]
[1751313460550,1.7444558,2515.6,2515.2,3.97580153]
[1751313460731,5.71969673,2515.6,2515.1,4.17430979]
[1751313460938,1.7444558,2515.6,2515.1,4.17430979]
[1751313461146,0.02,2515.6,2515.0,10.84681212]
[1751313461336,0.02,2515.6,2515.5,4.17375281]
[1751313462668,0.02,2515.6,2515.5,0.1984]
[1751313466361,0.02,2515.6,2515.5,4.17375281]
[1751313469267,0.02,2515.6,2515.5,0.1984]
[1751313470034,0.02,2515.6,2515.3,6.637]
[1751313470250,0.02,2515.6,2515.2,0.1984]
[1751313470251,5.62523366,2515.6,2515.2,0.1984]
[1751313470449,5.62523366,2515.6,2515.2,6.8354]
[1751313470645,1.65001388,2515.6,2515.2,10.81120387]
[1751313471249,1.65001388,2515.6,2515.4,0.02]
[1751313472164,0.02,2515.6,2515.5,3.97535281]
[1751313472384,0.02,2515.6,2515.5,4.17375281]
[1751313472580,0.02,2515.6,2515.5,10.81075281]
[1751313474478,0.02,2515.6,2515.5,4.17375281]
[1751313474674,0.02,2515.6,2515.5,10.81075281]
[1751313474875,0.02,2515.6,2515.5,6.8354]
[1751313475083,0.02,2515.6,2515.5,0.1984]
[1751313475309,0.02,2515.6,2515.5,6.8354]
[1751313475673,0.02,2515.6,2515.5,6.637]
[1751313475867,0.02,2515.6,2515.4,6.657]
[1751313476212,0.4986284,2515.6,2515.4,0.02]
[1751313476413,0.2184,2515.6,2515.4,0.02]
[1751313478122,0.02,2515.6,2515.4,0.02]
[1751313478279,0.02,2515.6,2515.5,3.97535281]
[1751313478685,0.02,2515.6,2515.5,10.81075281]
[1751313479088,0.02,2515.6,2515.5,21.65756493]
[1751313479280,0.02,2515.6,2515.5,34.3978685]
[1751313479486,0.02,2515.6,2515.5,35.57321349]
[1751313479897,0.02,2515.6,2515.5,34.9725685]
[1751313480308,0.02,2515.6,2515.5,28.3355685]
[1751313480493,0.02,2515.6,2515.5,34.9725685]
[1751313482018,0.02,2515.6,2515.5,29.50697467]
[1751313482326,0.02,2515.6,2515.5,36.14297467]
[1751313482696,0.02,2515.6,2515.5,11.36980617]
[1751313482901,0.02,2515.6,2515.5,6.636]
[1751313483200,3.99519478,2515.6,2515.5,6.636]
[1751313483606,3.99519478,2515.6,2515.4,0.02]
[1751313483817,0.02,2515.6,2515.4,6.656]
[1751313484018,3.9952173,2515.6,2515.4,6.656]
[1751313484519,4.72795281,2515.5,2515.4,0.02]
[1751313485290,0.7526,2515.5,2515.4,0.02]
[1751313485487,0.971,2515.6,2515.4,0.02]
[1751313485916,4.94622407,2515.6,2515.4,0.02]
[1751313486223,0.971,2515.6,2515.4,0.02]
[1751313486421,0.02,2515.6,2515.4,0.02]
[1751313486820,0.02,2515.6,2515.4,6.656]
[1751313488320,0.02,2515.6,2515.4,0.02]
[1751313488828,0.02,2515.6,2515.5,3.97535281]
[1751313489026,0.02,2515.6,2515.5,0.1984]
[1751313489329,0.02,2515.6,2515.5,14.74845281]
[1751313489705,0.02,2515.6,2515.5,16.31957788]
[1751313490020,0.02,2515.6,2515.5,14.74845281]
[1751313490395,0.01,2515.8,2515.7,13.97503676]
[1751313490833,0.01,2515.8,2515.7,20.80943676]
[1751313491005,0.01,2515.8,2515.7,25.06561576]
[1751313494226,0.01,2515.8,2515.7,16.86575307]
[1751313494534,0.01,2515.8,2515.7,24.6723849]
[1751313495031,0.01,2515.8,2515.7,23.50075307]
[1751313495229,0.01,2515.8,2515.7,24.67237059]
[1751313495604,0.01,2515.8,2515.7,23.50075307]
[1751313495811,0.01,2515.8,2515.7,25.06461576]
[1751313496336,0.01,2515.8,2515.7,23.50075307]
[1751313496703,0.01,2515.8,2515.7,25.63931576]
[1751313497120,0.01,2515.8,2515.7,25.63649149]
[1751313499833,0.8192,2517.7,2517.4,3.97235242]
[1751313500033,0.8192,2517.7,2517.4,10.60735242]
[1751313500236,0.7696,2518.2,2517.4,6.635]
[1751313500535,0.7696,2517.8,2517.3,3.97239912]
[1751313500733,0.7696,2517.8,2517.4,3.97228847]
[1751313500939,0.9839652,2517.8,2517.4,6.657]
[1751313501139,0.2143652,2517.8,2517.7,3.97187909]
[1751313501307,0.2143652,2517.8,2517.7,10.62787909]
[1751313502028,0.2143652,2517.8,2517.7,6.656]
[1751313503214,0.2143652,2517.8,2517.4,0.6657]
[1751313503430,0.2143652,2517.8,2517.5,6.65]
[1751313503824,0.2143652,2517.8,2517.1,0.5747]
[1751313504029,12.072,2518.5,2517.9,7.9431272]
[1751313504030,1.19113141,2518.5,2517.9,7.9431272]
[1751313504231,1.19113141,2519.3,2518.5,10.5747]
[1751313504536,0.7696,2519.5,2518.9,10.0]
[1751313504847,0.7696,2519.5,2519.2,3.96939699]
[1751313505039,1.40549661,2519.7,2519.6,3.96888394]
[1751313505211,0.2143652,2519.7,2519.2,10.0]
[1751313505416,0.2143652,2519.7,2519.3,6.689]
[1751313505612,0.2143652,2519.7,2519.5,3.96895967]
[1751313505812,0.2143652,2519.7,2519.6,6.689]
[1751313506841,0.2143652,2519.7,2518.8,0.5747]
[1751313507135,1.3682,2519.6,2518.5,0.5747]
[1751313507341,0.2143652,2519.7,2518.1,10.84681212]
[1751313507342,0.8182,2519.4,2518.6,6.695]
[1751313507547,3.9704693,2518.6,2518.5,6.699]
[1751313507726,3.9704693,2518.6,2518.2,6.699]
[1751313507727,3.97093277,2518.3,2518.2,6.699]
[1751313507918,3.97093277,2518.3,2518.0,6.699]
[1751313508118,0.8182,2518.3,2517.7,0.9183565]
[1751313508319,4.78913277,2518.3,2518.0,6.7]
[1751313508518,3.97121292,2518.2,2518.0,6.7]
[1751313508715,0.8182,2518.3,2518.0,6.7]
[1751313509439,1.3772,2518.6,2518.0,6.7]
[1751313509736,0.1984,2518.5,2518.1,3.97112551]
[1751313509936,0.1984,2518.5,2518.0,6.8984]
[1751313510144,2.071,2518.7,2518.0,6.8984]
[1751313510145,2.071,2518.7,2518.1,10.68984]
[1751313510330,1.0256,2518.9,2518.4,4.16905561]
[1751313510530,0.8272,2518.9,2518.5,3.97061743]
[1751313510736,2.071,2519.2,2518.7,0.1984]
[1751313510737,3.0966,2519.2,2518.7,0.1984]
[1751313511038,3.0966,2519.2,2518.7,6.8954]
[1751313511245,0.30966,2519.1,2518.4,3.97074059]
[1751313511549,0.1984,2519.0,2518.6,0.1984]
[1751313512044,0.55,2518.7,2517.8,10.0]
[1751313512232,0.1984,2518.4,2518.0,3.9712919]
[1751313512435,0.965,2518.6,2518.1,0.1984]
[1751313512822,0.965,2518.6,2518.1,4.16961539]
[1751313513050,1.66562245,2518.6,2518.2,3.97097072]
[1751313513225,1.66562245,2518.6,2518.1,4.16961907]
[1751313513226,0.965,2518.6,2518.1,4.16961907]
[1751313513428,0.965,2518.6,2518.2,3.97106335]
[1751313513933,0.965,2518.6,2518.2,3.97102593]
[1751313514135,0.965,2518.6,2518.1,4.16958241]
[1751313514336,1.45851645,2518.6,2518.1,4.16958241]
[1751313514534,1.45851645,2518.6,2518.2,3.97107272]
[1751313514535,0.915,2518.6,2518.2,3.97107272]
[1751313514724,0.915,2518.6,2518.1,4.16956068]
[1751313515127,0.1984,2518.6,2518.0,10.67337402]
[1751313515327,0.1984,2518.8,2518.4,4.16904394]
[1751313515534,0.1984,2518.8,2518.5,3.97052935]
[1751313515727,2.071,2519.0,2518.7,3.9701617]
[1751313515947,2.507466,2519.0,2518.5,0.1984]
[1751313516148,0.1984,2519.4,2518.9,0.1984]
[1751313516453,2.071,2519.5,2519.0,3.96982929]
[1751313516620,2.071,2519.5,2519.0,3.96972846]
[1751313516821,2.071,2519.5,2519.1,0.1984]
[1751313517019,2.31937652,2519.5,2519.1,4.16806076]
[1751313517223,2.31937652,2519.5,2519.2,3.96949668]
[1751313517423,2.31937652,2519.5,2519.3,3.96935604]
[1751313517649,2.31937652,2519.5,2519.2,3.96943376]
[1751313517852,2.31937652,2519.5,2519.3,0.1984]
[1751313518437,2.31937652,2519.5,2519.0,3.96978805]
[1751313518438,0.31292765,2519.4,2519.1,6.698]
[1751313518636,0.31292765,2519.4,2519.1,6.8964]
[1751313518838,0.31292765,2519.4,2519.1,4.16796943]
[1751313519022,2.31937652,2519.5,2519.2,3.96950322]
[1751313519527,2.31937652,2519.5,2519.1,10.86198681]
[1751313519826,2.31937652,2519.5,2518.4,0.6247]
[1751313519827,3.96921455,2519.4,2518.4,0.6247]
[1751313520026,0.1984,2519.3,2518.8,0.1984]
[1751313520465,0.1984,2519.3,2518.8,4.16846123]
[1751313520632,0.1984,2519.3,2518.9,3.96997692]
[1751313520821,0.1984,2519.3,2518.8,0.1984]
[1751313520822,0.7913,2519.2,2518.8,0.1984]
[1751313521027,0.7913,2519.2,2518.8,6.691]
[1751313521243,0.1984,2519.1,2518.8,6.691]
[1751313521458,0.7913,2519.2,2518.8,10.66112981]
[1751313521660,0.7913,2519.2,2518.8,10.85952981]
[1751313522031,0.7913,2519.2,2518.8,0.1984]
[1751313522361,0.69430603,2519.1,2518.7,6.688]
[1751313523036,0.69430603,2519.1,2518.6,0.1984]
[1751313523238,0.7818,2518.8,2518.2,1.1566695]
[1751313523536,0.7818,2518.8,2518.0,1.542226]
[1751313523537,0.55,2518.6,2518.3,1.28832075]
[1751313523739,0.1984,2518.5,2518.4,1.28832075]
[1751313524147,0.1984,2518.5,2518.4,0.92639078]
[1751313524478,2.8878,2518.8,2518.4,5.25932498]
[1751313524630,0.48718,2518.7,2518.3,4.16925941]
[1751313524830,0.48718,2518.7,2518.4,4.8979356]
[1751313525055,0.48718,2518.7,2518.5,4.89778078]
[1751313525245,0.7818,2518.8,2518.5,3.97059215]
[1751313525578,0.7818,2518.8,2518.5,0.1984]
[1751313525735,2.3044,2518.9,2518.5,4.16894363]
[1751313526083,2.3044,2518.9,2518.8,3.97014451]
[1751313526365,2.3044,2518.9,2518.7,3.97024274]
[1751313526565,2.3044,2518.9,2518.6,3.97038506]
[1751313526566,0.1984,2518.9,2518.6,3.97038506]
[1751313526767,0.8283,2519.1,2518.7,3.97018516]
[1751313526940,2.12173,2519.1,2518.8,0.1984]
[1751313528067,0.8283,2519.1,2518.8,0.1984]
[1751313528270,0.8283,2519.1,2518.9,0.92959358]
[1751313528433,0.8283,2519.1,2519.0,0.92948636]
[1751313528634,2.106,2519.2,2519.0,0.92948636]
[1751313528854,2.106,2519.2,2518.8,4.16854278]
[1751313528855,2.106,2519.2,2518.8,0.1984]
[1751313529055,2.106,2519.2,2519.1,4.1680717]
[1751313529258,2.106,2519.2,2519.1,5.09752641]
[1751313529971,2.106,2519.2,2519.1,1.12785471]
[1751313530150,0.7826,2519.4,2519.1,5.09752641]
[1751313530338,0.9979652,2519.7,2519.2,2.08612421]
[1751313530538,0.2143652,2519.7,2519.5,4.16734676]
[1751313530772,0.2143652,2519.7,2519.6,0.92945471]
[1751313530980,0.2143652,2519.7,2519.4,3.96909997]
[1751313530981,0.4127652,2519.7,2519.4,3.96909997]
[1751313531155,0.2143652,2519.7,2519.6,0.1984]
[1751313531479,0.2143652,2519.7,2519.6,1.12874356]
[1751313531635,0.45420172,2519.7,2519.6,1.12874356]
[1751313531836,0.45420172,2519.7,2519.6,0.93034356]
[1751313532083,0.45420172,2519.7,2519.4,0.93034356]
[1751313532384,0.45420172,2519.7,2519.5,0.93034356]
[1751313532585,0.45420172,2519.7,2519.6,0.93034356]
[1751313532877,4.91919901,2519.4,2519.3,1.1566695]
[1751313533080,4.91919901,2519.4,2519.0,1.1566695]
[1751313533379,4.91919901,2519.4,2518.9,1.1566695]
[1751313533380,4.16800706,2519.2,2518.9,1.1566695]
[1751313533681,4.16800706,2519.2,2518.8,1.1566695]
[1751313533682,0.7516,2518.9,2518.8,1.1566695]
[1751313533842,1.42214983,2518.9,2518.7,1.1566695]
[1751313534371,5.39213672,2518.9,2518.7,1.1566695]
[1751313534574,3.97014451,2518.8,2518.6,1.1566695]
[1751313534774,1.42214983,2518.9,2518.5,1.1566695]
[1751313534775,1.22374983,2518.9,2518.5,1.1566695]
[1751313534975,0.1984,2518.7,2518.5,1.1566695]
[1751313535270,1.22374983,2518.9,2518.5,1.1566695]
[1751313535271,1.42214983,2518.9,2518.5,5.12722372]
[1751313535472,1.42214983,2518.9,2518.7,1.1566695]
[1751313535972,0.35281498,2518.8,2518.6,1.1566695]
[1751313536174,0.35281498,2518.8,2518.5,1.1566695]
[1751313536566,0.35281498,2518.8,2518.6,1.1566695]
[1751313536966,0.7979,2519.3,2518.6,7.8626695]
[1751313537174,0.7979,2519.3,2519.0,3.96972843]
[1751313537347,0.7979,2519.3,2519.1,1.16705221]
[1751313537543,0.7979,2519.6,2519.1,1.16705221]
[1751313537746,0.31182652,2519.5,2519.2,5.13656634]
[1751313538174,0.31182652,2519.5,2519.3,3.9692472]
[1751313538356,0.7979,2519.6,2519.4,1.16705221]
[1751313539188,3.1182652,2519.7,2519.4,1.16705221]
[1751313539356,3.1182652,2519.7,2519.3,1.16705221]
[1751313539544,3.1182652,2519.7,2519.4,1.16705221]
[1751313540259,3.96919901,2519.4,2519.2,1.16705221]
[1751313540456,3.96953621,2519.2,2519.0,1.16705221]
[1751313540655,3.96953621,2519.2,2518.6,6.28372545]
[1751313540656,0.55,2519.2,2518.9,1.16705221]
[1751313540881,3.96982929,2519.0,2518.8,1.16705221]
[1751313541083,0.55,2519.2,2518.8,1.16705221]
[1751313541385,3.96998689,2518.9,2518.8,1.16705221]
[1751313541686,0.793,2518.8,2518.7,1.16705221]
[1751313542883,1.9003,2519.1,2518.7,1.16705221]
[1751313543093,0.766,2519.1,2518.8,1.16824597]
[1751313543306,4.7357454,2519.1,2518.8,1.16824597]
[1751313543448,3.96983431,2519.0,2518.8,1.16824597]
[1751313543652,1.316,2518.9,2518.7,1.16824597]
[1751313543950,11.46102815,2518.9,2518.5,1.18824597]
[1751313544183,15.28645977,2518.6,2518.5,1.18824597]
[1751313544388,17.39245977,2518.6,2518.5,0.02]
[1751313544586,3.97110477,2518.2,2518.0,1.16824597]
[1751313544788,4.5215636,2517.9,2517.8,0.39843182]
[1751313544962,1.3523,2517.5,2517.4,1.55990058]
[1751313545169,10.1973,2517.5,2517.4,0.93605087]
[1751313545367,10.1973,2517.5,2516.7,3.104452]
[1751313545368,0.55,2517.3,2516.7,0.02]
[1751313545866,3.97329942,2516.8,2516.7,0.02]
[1751313546071,3.972981,2517.1,2516.7,0.02]
[1751313546278,1.3995649,2517.1,2516.7,0.02]
[1751313546472,3.97329942,2516.8,2516.7,0.02]
[1751313546883,0.8302,2516.9,2516.7,0.02]
[1751313547061,0.1984,2517.1,2516.7,0.2184]
[1751313547268,3.97316155,2516.9,2516.7,0.2184]
[1751313547483,3.97321768,2516.9,2516.7,0.02]
[1751313547690,3.97329942,2516.8,2516.7,0.02]
[1751313547896,4.17143008,2517.0,2516.7,0.02]
[1751313548104,3.97325923,2516.9,2516.7,0.02]
[1751313548306,3.97329942,2516.8,2516.7,0.02]
[1751313549159,6.07929942,2516.8,2516.7,0.02]
[1751313551062,6.11829942,2516.8,2516.7,0.02]
[1751313551264,4.17169942,2516.8,2516.7,0.02]
[1751313551493,0.1984,2516.8,2516.7,0.02]
[1751313551692,0.1984,2517.4,2516.7,0.2184]
[1751313551891,0.1984,2517.4,2517.1,4.17121625]
[1751313552200,0.1984,2517.4,2517.1,0.1984]
[1751313552779,4.17076236,2517.4,2517.1,0.1984]
[1751313552998,4.78549016,2517.7,2517.2,3.97257069]
[1751313553199,4.78549016,2517.7,2517.3,0.1984]
[1751313553200,3.97206005,2517.6,2517.3,0.1984]
[1751313553510,2.64291093,2517.7,2517.3,4.17088526]
[1751313553707,2.145,2517.8,2517.4,3.97228209]
[1751313553912,0.1984,2517.9,2517.5,0.1984]
[1751313554079,0.1984,2518.2,2517.4,3.97235242]
[1751313554428,3.97134183,2518.1,2517.8,0.1984]
[1751313554622,3.971414,2518.0,2517.8,0.1984]
[1751313554796,3.1627,2518.3,2517.6,0.1984]
[1751313554797,4.1697187,2518.1,2517.6,0.1984]
[1751313554979,0.1984,2518.1,2517.6,0.1984]
[1751313555313,0.91178668,2518.1,2517.6,0.1984]
[1751313555515,4.16969579,2518.1,2517.6,0.1984]
[1751313555713,3.97168476,2517.9,2517.6,0.1984]
[1751313555896,4.16972982,2518.1,2517.6,0.1984]
[1751313556097,3.97164393,2517.9,2517.6,0.1984]
[1751313556322,3.97145221,2518.0,2517.6,0.1984]
[1751313556499,4.16972862,2518.1,2517.6,4.17043601]
[1751313556816,2.3434,2518.2,2517.8,0.1984]
[1751313557019,2.3434,2518.2,2517.8,4.17004757]
[1751313557218,2.145,2518.2,2517.9,3.97152985]
[1751313557392,2.145,2518.2,2518.1,3.97124816]
[1751313557586,2.145,2518.2,2518.0,0.1984]
[1751313557904,9.6471,2518.0,2517.8,4.59633553]
[1751313558218,9.6471,2518.0,2517.9,3.9715636]
[1751313558420,9.6471,2518.0,2517.9,4.1699636]
[1751313560296,9.6471,2518.0,2517.9,14.7199636]
[1751313561296,9.6471,2518.0,2517.9,20.9239636]
[1751313562123,9.6471,2518.0,2517.9,14.1699636]
[1751313562995,9.6471,2518.0,2517.9,16.76795687]
[1751313563227,9.6471,2518.0,2517.9,17.06377852]
[1751313563523,9.6471,2518.0,2517.9,17.68847852]
[1751313564504,9.6471,2518.0,2517.9,18.23847852]
[1751313564733,9.45223176,2518.0,2517.9,18.23847852]
[1751313565833,2.144,2519.2,2519.1,3.9696717]
[1751313566049,0.7783,2519.4,2519.0,4.16814291]
[1751313566050,0.9767,2519.4,2519.0,4.16814291]
[1751313566202,2.42636845,2519.4,2519.0,4.16814291]
[1751313566599,0.01,2519.6,2519.0,3.96976576]
[1751313566818,0.01,2519.6,2519.2,0.1984]
[1751313567005,0.01,2519.6,2519.5,4.16744147]
[1751313567825,0.01,2519.6,2519.5,0.1984]
[1751313568013,0.01,2519.6,2519.5,4.16744147]
[1751313568732,0.01,2519.6,2519.3,3.96930911]
[1751313569031,0.01,2519.6,2519.4,6.9544]
[1751313569235,0.01,2519.6,2519.4,6.756]
[1751313569434,0.01,2519.6,2519.5,0.1984]
[1751313570228,0.01,2519.6,2519.5,4.16744147]
[1751313570808,0.01,2519.6,2519.5,5.60580355]
[1751313571531,0.01,2519.6,2519.5,4.79214147]
[1751313572651,0.01,2519.6,2519.5,17.48514147]
[1751313573217,0.078,2519.9,2519.8,5.14326893]
[1751313573413,0.078,2519.9,2519.8,11.90126893]
[1751313573609,0.078,2519.9,2519.8,22.09966893]
[1751313573850,0.01,2520.2,2520.1,13.9680965]
[1751313574041,0.01,2520.2,2520.1,21.2750965]
[1751313574255,0.01,2520.2,2520.1,21.8997965]
[1751313574426,0.01,2520.2,2520.1,22.0973965]
[1751313574622,0.01,2520.2,2520.1,21.5473965]
[1751313574863,0.29346413,2520.3,2520.2,14.51793905]
[1751313575012,0.29346413,2520.3,2520.2,3.96793905]
[1751313575220,0.29346413,2520.3,2519.7,0.6247]
[1751313575418,0.29346413,2520.3,2519.4,2.7677]
[1751313575742,0.7518,2520.2,2519.5,6.766]
[1751313575917,0.7518,2520.2,2519.8,3.96847521]
[1751313576118,0.50131514,2520.1,2519.7,3.96866276]
[1751313576374,0.7518,2520.2,2519.5,6.767]
[1751313576523,0.7518,2520.2,2519.3,3.96933892]
[1751313576730,4.71975975,2520.2,2519.4,6.773]
[1751313576924,0.7518,2520.2,2519.9,3.96839673]
[1751313577250,0.29346413,2520.3,2519.8,6.771]
[1751313577451,0.29346413,2520.3,2519.8,10.73947274]
[1751313577751,3.96794638,2520.2,2519.8,6.771]
[1751313578049,0.42614105,2520.1,2519.8,6.775]
[1751313578351,0.29346413,2520.3,2519.8,6.775]
[1751313578650,4.2613225,2520.3,2519.8,10.74354722]
[1751313578839,0.29346413,2520.3,2519.8,10.74354722]
[1751313579151,0.29346413,2520.3,2519.8,6.775]
[1751313579450,0.29346413,2520.3,2520.2,3.96793905]
[1751313579761,0.29346413,2520.3,2520.1,3.9680222]
[1751313579964,0.29346413,2520.3,2520.0,3.96819035]
[1751313580123,0.29346413,2520.3,2520.0,3.96823897]
[1751313580323,0.29346413,2520.3,2520.2,3.96793905]
[1751313581153,0.29346413,2520.3,2520.2,15.43944186]
[1751313581846,4.36661472,2521.2,2521.1,3.96652254]
[1751313581847,2.22361472,2521.2,2521.1,3.96652254]
[1751313582349,2.22361472,2521.2,2521.0,3.96660367]
[1751313582350,2.22361472,2521.2,2520.9,6.777]
[1751313582552,6.19006847,2521.2,2520.5,3.96733154]
[1751313582759,2.22361472,2521.2,2520.6,3.96730538]
[1751313582961,0.22236147,2521.1,2520.4,6.781]
[1751313583165,0.22236147,2521.1,2520.6,3.96723762]
[1751313583867,0.22236147,2521.1,2520.4,6.781]
[1751313584165,0.797,2520.9,2520.5,10.7454479]
[1751313584340,0.797,2520.9,2520.5,6.778]
[1751313584752,1.2956093,2520.9,2520.6,3.96730572]
[1751313584952,0.797,2520.9,2520.5,6.778]
[1751313585349,3.96708303,2520.8,2520.2,10.74285525]
[1751313585548,4.76391894,2520.9,2520.2,6.775]
[1751313585864,4.76391894,2520.9,2520.2,10.74091564]
[1751313586073,3.9669946,2520.8,2519.8,4.00855811]
[1751313586362,0.8102,2520.6,2519.8,4.00859103]
[1751313586586,0.8102,2520.6,2519.8,6.8111]
[1751313586874,0.8102,2520.6,2520.4,3.96752366]
[1751313587058,0.8102,2520.6,2520.3,3.96769527]
[1751313587373,14.1889095,2521.1,2520.5,3.96738706]
[1751313587374,0.7529,2521.0,2520.5,3.96738706]
[1751313587576,0.22236147,2521.1,2520.5,4.59213704]
[1751313587891,0.22236147,2521.1,2520.7,3.96714929]
[1751313588050,0.22236147,2521.1,2520.6,3.96728938]
[1751313588051,0.22236147,2521.1,2520.8,3.96697804]
[1751313588252,2.22361472,2521.2,2520.6,6.781]
[1751313588452,6.1900069,2521.2,2520.7,3.96715198]
[1751313588638,2.22361472,2521.2,2520.8,3.96692749]
[1751313588838,2.22361472,2521.2,2520.6,6.781]
[1751313589261,2.22361472,2521.2,2521.1,3.96652254]
[1751313589584,2.22361472,2521.2,2520.8,3.96690023]
[1751313589782,2.22361472,2521.2,2520.9,3.96671071]
[1751313589937,2.22361472,2521.2,2520.9,10.74471071]
[1751313590144,2.22361472,2521.2,2520.5,10.0]
[1751313590349,2.22361472,2521.2,2520.6,6.777]
[1751313590550,2.22361472,2521.2,2520.9,3.96669858]
[1751313591095,2.22361472,2521.2,2520.4,0.6247]
[1751313591096,6.19004883,2521.2,2520.6,10.74328088]
[1751313591247,6.19004883,2521.2,2520.4,0.6247]
[1751313591248,2.22361472,2521.2,2520.4,0.9195953]
[1751313591451,3.96699475,2520.8,2520.2,0.6247]
[1751313591649,3.96741058,2520.6,2519.9,2.16372199]
[1751313591896,0.8161,2520.5,2520.1,3.96800969]
[1751313592069,4.78359286,2520.5,2520.0,10.74416306]
[1751313592256,0.8161,2520.5,2520.0,6.776]
[1751313592453,0.8161,2520.5,2519.8,4.00860163]
[1751313592798,0.8161,2520.5,2520.0,3.96814203]
[1751313592979,4.78357333,2520.5,2520.0,3.96814203]
[1751313593167,3.9676322,2520.4,2519.9,3.96837917]
[1751313593363,1.69118154,2520.5,2519.7,1.53902199]
[1751313593669,3.96788002,2520.3,2519.8,10.7474874]
[1751313593872,3.96788002,2520.3,2519.8,3.9684874]
[1751313594070,3.968007,2520.2,2519.7,12.2886674]
[1751313594275,3.9678585,2520.3,2519.8,3.96856099]
[1751313594460,4.78362434,2520.5,2519.9,3.96838554]
[1751313594461,3.96769677,2520.4,2519.9,3.96838554]
[1751313594662,0.47837968,2520.4,2519.9,3.96837832]
[1751313594858,0.8161,2520.5,2519.8,12.29354152]
[1751313594859,4.78358635,2520.5,2519.8,12.29354152]
[1751313595053,0.8161,2520.5,2520.1,0.1984]
[1751313595260,0.1976,2520.6,2519.8,1.53902199]
[1751313595261,0.7785,2520.0,2519.8,0.1984]
[1751313595467,0.7785,2520.0,2519.5,1.73742199]
[1751313595671,0.7785,2520.0,2519.5,0.1984]
[1751313595672,3.96888394,2519.6,2519.5,0.1984]
[1751313595891,3.96845997,2519.9,2519.2,10.76140967]
[1751313596081,4.74688697,2520.0,2519.5,1.53902199]
[1751313596283,0.7785,2520.0,2519.5,0.1984]
[1751313596488,3.9688128,2519.7,2519.5,0.1984]
[1751313596687,0.7785,2520.0,2519.3,0.1984]
[1751313596688,0.1984,2519.8,2519.3,0.1984]
[1751313596991,4.73524989,2519.6,2518.9,8.33302199]
[1751313597170,0.1984,2519.7,2519.2,0.1984]
[1751313597500,2.156,2520.1,2519.6,3.96878246]
[1751313597501,0.1984,2520.0,2519.6,3.96878246]
[1751313597700,0.1984,2520.0,2519.6,3.96886469]
[1751313597900,0.7663,2520.2,2519.5,10.76400483]
[1751313598115,0.7663,2520.2,2519.5,1.53902199]
[1751313598271,0.1984,2520.1,2519.6,0.1984]
[1751313598476,0.7663,2520.2,2519.8,3.96853978]
[1751313598726,0.7663,2520.2,2520.0,0.1984]
[1751313599311,3.96820659,2520.1,2519.4,3.96919901]
[1751313599623,3.96820659,2520.1,2519.3,0.6247]
[1751313599624,0.1984,2520.1,2519.6,0.1984]
[1751313599904,0.7663,2520.2,2518.7,2.32347657]
[1751313599905,0.8156,2519.3,2518.7,2.32347657]
[1751313600104,0.8156,2518.7,2518.4,2.32347657]
[1751313600309,0.8156,2519.1,2518.4,2.32347657]
[1751313600609,0.8156,2519.4,2518.7,2.32347657]
[1751313600790,0.55,2519.3,2518.8,2.32347657]
[1751313600990,3.96952251,2519.2,2518.8,2.32347657]
[1751313601190,0.8156,2519.4,2518.8,2.32347657]
[1751313601402,3.9697579,2519.1,2518.6,2.32347657]
[1751313601603,2.02846704,2519.3,2518.6,6.29382062]
[1751313601604,5.99795803,2519.3,2518.6,6.29382062]
[1751313601806,3.96970325,2519.1,2518.7,2.32347657]
[1751313601972,4.18446704,2519.3,2518.7,2.32347657]
[1751313602172,4.18446704,2519.3,2518.8,3.97010647]
[1751313602173,2.02846704,2519.3,2518.8,3.97010647]
[1751313602504,0.8156,2519.4,2519.0,3.96974531]
[1751313602705,0.8156,2519.4,2518.5,6.821]
[1751313602907,0.8156,2519.4,2519.0,3.96982153]
[1751313603116,12.156,2519.3,2518.3,0.6247]
[1751313603320,3.97036369,2518.7,2517.9,0.6447]
[1751313603626,3.97036369,2518.7,2518.5,0.02]
[1751313603627,15.33605977,2518.6,2518.5,0.02]
[1751313603793,4.52203686,2517.6,2517.5,0.02]
[1751313604110,4.52203686,2517.6,2516.6,0.02]
[1751313604111,10.8103,2516.7,2516.6,0.02]
[1751313604410,10.8103,2516.7,2515.5,0.02]
[1751313604411,5.33423101,2516.4,2515.5,0.02]
[1751313604611,24.81923101,2516.4,2515.5,0.02]
[1751313604800,3.97519478,2515.6,2515.5,0.02]
[1751313605005,16.30878639,2515.6,2515.5,0.02]
[1751313605208,6.30878639,2515.6,2515.5,0.02]
[1751313605406,17.88716916,2515.6,2515.5,0.02]
[1751313605610,14.52535281,2515.5,2514.5,0.02]
[1751313605805,16.75635281,2515.5,2514.5,0.02]
[1751313606120,16.20635281,2515.5,2514.5,0.02]
[1751313606308,14.73067563,2514.6,2514.5,0.02]
[1751313606483,19.38240536,2514.6,2514.5,0.02]
[1751313606680,13.17462973,2514.6,2514.5,0.02]
[1751313606902,14.85562973,2514.6,2514.5,0.02]
[1751313607126,0.7539,2514.6,2514.5,0.02]
[1751313607306,5.28067563,2514.6,2514.5,0.02]
[1751313607484,14.52693378,2514.5,2514.4,1e-08]
[1751313608192,14.52693378,2514.5,2513.3,0.02]
[1751313608193,3.97725012,2514.3,2513.3,0.02]